bitfinex-derivatives/quotes_SOLF0:USTF0_20240908
["timestamp","ask_amount","ask_price","bid_price","bid_amount"]
[1725808066573,31.9,127.94,127.88,8.41]
[1725808067177,3.1277,127.9,127.88,8.41]
[1725808069384,3.1277,127.9,127.89,8.41]
[1725808075376,3.1277,127.9,127.89,12.39373347]
[1725808075579,3.1277,127.9,127.89,8.41]
[1725808081188,3.1277,127.9,127.88,12.38043872]
[1725808083391,3.1278,127.89,127.88,12.38043872]
[1725808087284,8.41,127.92,127.85,2.6448]
[1725808087481,3.1285,127.86,127.85,1.3634]
[1725808087782,31.9,127.91,127.84,8.41]
[1725808087985,8.41,127.89,127.84,8.41]
[1725808088989,3.1288,127.85,127.84,8.41]
[1725808093393,23.47,127.91,127.84,8.41]
[1725808093594,23.47,127.91,127.88,8.41]
[1725808095396,3.1278,127.89,127.88,8.41]
[1725808100699,3.1278,127.89,127.88,12.34460575]
[1725808102099,3.1274,127.91,127.88,12.34460575]
[1725808102298,3.1274,127.91,127.9,8.41]
[1725808102501,31.88,127.94,127.88,8.41]
[1725808102704,31.88,127.94,127.88,12.24017834]
[1725808103411,3.1277,127.9,127.88,12.24017834]
[1725808104204,31.88,127.94,127.85,1.3133]
[1725808104205,3.1278,127.89,127.87,8.41]
[1725808104407,23.47,127.92,127.87,8.41]
[1725808104804,3.128,127.89,127.87,8.41]
[1725808106202,23.47,127.92,127.87,8.41]
[1725808106807,3.128,127.89,127.87,8.41]
[1725808107512,23.47,127.92,127.87,8.41]
[1725808108909,23.47,127.92,127.88,12.24191764]
[1725808109113,23.47,127.92,127.88,8.41]
[1725808109712,23.47,127.92,127.88,12.25990786]
[1725808109909,23.47,127.92,127.88,3.84990786]
[1725808110218,23.47,127.93,127.88,8.41]
[1725808110410,23.47,127.93,127.88,12.39639891]
[1725808111211,3.1277,127.9,127.88,12.39639891]
[1725808114309,3.1278,127.89,127.88,8.41]
[1725808116913,3.1278,127.89,127.88,12.4014831]
[1725808119318,3.1278,127.89,127.88,8.41]
[1725808122608,8.41,127.94,127.88,12.22354606]
[1725808122609,23.47,127.94,127.88,12.22354606]
[1725808122809,23.47,127.94,127.89,8.41]
[1725808123818,23.47,127.93,127.89,8.41]
[1725808124224,23.47,127.93,127.9,8.41]
[1725808124426,23.47,127.93,127.89,8.41]
[1725808124814,23.47,127.92,127.89,8.41]
[1725808125017,3.1277,127.9,127.89,8.41]
[1725808132833,23.47,127.94,127.88,3.81628343]
[1725808132834,3.1278,127.89,127.88,12.22628343]
[1725808133025,3.1278,127.89,127.88,8.41]
[1725808133622,3.1278,127.89,127.88,12.28963084]
[1725808137534,3.1277,127.9,127.88,12.28963084]
[1725808137737,3.1277,127.9,127.89,8.41]
[1725808138527,3.1277,127.9,127.89,12.41555294]
[1725808142241,3.1277,127.9,127.89,8.41]
[1725808146643,3.1274,127.91,127.89,8.41]
[1725808146945,3.1274,127.91,127.9,8.41]
[1725808147644,3.1274,127.91,127.9,12.26322177]
[1725808151144,3.1272,127.92,127.9,12.26322177]
[1725808151344,3.1272,127.92,127.91,8.41]
[1725808152143,3.1272,127.92,127.91,12.30388489]
[1725808154548,48.05529869,127.97,127.91,12.30388489]
[1725808154549,45.36839869,127.97,127.91,12.30388489]
[1725808154753,45.36839869,127.97,127.95,8.41]
[1725808155148,3.1266,127.94,127.93,8.41]
[1725808156764,3.1268,127.93,127.92,8.41]
[1725808158557,3.1267,127.94,127.92,8.41]
[1725808158758,3.1267,127.94,127.93,8.41]
[1725808159464,3.1267,127.94,127.92,8.41]
[1725808160356,3.1268,127.93,127.92,8.41]
[1725808166362,23.47,127.96,127.91,8.41]
[1725808166752,3.1271,127.92,127.91,8.41]
[1725808172652,3.1277,127.9,127.87,1.2963]
[1725808172856,3.1277,127.9,127.89,8.41]
[1725808173058,3.1277,127.9,127.89,12.39631743]
[1725808173866,23.47,127.95,127.89,12.39631743]
[1725808174066,23.47,127.95,127.92,8.41]
[1725808174967,23.47,127.96,127.92,8.41]
[1725808175466,3.1268,127.93,127.92,8.41]
[1725808182670,24.8406,127.98,127.92,8.41]
[1725808182867,24.8406,127.98,127.94,8.41]
[1725808183573,3.1263,127.95,127.94,8.41]
[1725808184471,3.1262,127.96,127.94,8.41]
[1725808184771,3.1262,127.96,127.95,8.41]
[1725808184973,23.47,127.99,127.92,2.6878]
[1725808185177,23.47,127.99,127.93,8.41]
[1725808185675,3.1265,127.95,127.93,8.41]
[1725808186379,3.1265,127.95,127.94,8.41]
[1725808188773,3.1265,127.95,127.92,2.6878]
[1725808188978,3.1265,127.95,127.94,8.41]
[1725808190281,3.1266,127.94,127.92,2.6878]
[1725808190484,3.1266,127.94,127.93,8.41]
[1725808196082,8.41,127.97,127.9,1.3168]
[1725808196282,23.47,127.96,127.91,8.41]
[1725808196882,3.1271,127.92,127.91,8.41]
[1725808197280,3.1271,127.92,127.91,12.3284656]
[1725808200390,3.1271,127.92,127.91,8.41]
[1725808200587,3.1278,127.89,127.88,1.3657]
[1725808200788,3.1278,127.89,127.88,9.7757]
[1725808201187,3.1278,127.89,127.88,13.70806903]
[1725808201689,23.47,127.95,127.88,13.70806903]
[1725808201876,23.47,127.95,127.91,8.41]
[1725808202788,23.47,127.95,127.88,5.29806903]
[1725808203193,23.47,127.95,127.9,8.41]
[1725808203394,3.1273,127.91,127.9,8.41]
[1725808213010,23.47,127.94,127.88,5.29806903]
[1725808213201,23.47,127.94,127.89,8.41]
[1725808214108,3.1275,127.91,127.89,8.41]
[1725808215405,3.1275,127.91,127.9,8.41]
[1725808215910,3.1269,127.93,127.9,8.41]
[1725808216210,26.15,127.96,127.92,8.41]
[1725808216403,26.15,127.96,127.88,5.29806903]
[1725808216404,26.15,127.96,127.93,8.41]
[1725808216602,3.1266,127.94,127.93,8.41]
[1725808217604,21.89893663,127.99,127.93,8.41]
[1725808217800,23.47,127.99,127.95,8.41]
[1725808218107,3.1261,127.96,127.95,8.41]
[1725808221410,8.41,127.98,127.93,8.41]
[1725808221616,23.47,127.97,127.93,8.41]
[1725808222116,3.1266,127.94,127.93,8.41]
[1725808222418,8.41,127.98,127.93,8.41]
[1725808222419,23.47,127.98,127.93,8.41]
[1725808222605,11.0398,128.0,127.9,4.4418]
[1725808222606,23.47,127.99,127.95,8.41]
[1725808228316,3.1261,127.96,127.95,8.41]
[1725808229015,3.1261,127.96,127.95,12.37372449]
[1725808229814,21.89893663,128.0,127.95,12.37372449]
[1725808230120,23.47,128.01,127.98,8.41]
[1725808230313,3.1254,127.99,127.98,8.41]
[1725808231221,3.1252,128.0,127.98,8.41]
[1725808231417,48.14187602,128.04,127.97,1.286]
[1725808231418,48.14187602,128.04,127.99,8.41]
[1725808232323,45.36157602,128.04,127.99,8.41]
[1725808232925,45.36157602,128.04,127.97,1.286]
[1725808232926,3.1253,128.0,127.97,1.286]
[1725808233125,3.1253,128.0,127.99,8.41]
[1725808262142,23.47,128.02,127.94,2.5993]
[1725808262452,23.47,128.02,127.96,8.41]
[1725808262641,3.1258,127.97,127.96,8.41]
[1725808262844,3.1258,127.97,127.96,12.410547]
[1725808264346,23.47,128.02,127.96,12.410547]
[1725808264544,23.47,128.03,127.99,8.41]
[1725808264742,23.47,128.03,128.01,8.41]
[1725808264939,3.1246,128.02,128.01,8.41]
[1725808267748,172.98981768,128.05,127.95,1.2851]
[1725808267954,172.98981768,128.05,127.99,8.41]
[1725808268151,3.1253,128.0,127.99,8.41]
[1725808269151,31.88,128.03,127.95,5.18609953]
[1725808269345,23.47,128.0,127.95,13.59609953]
[1725808269848,3.126,127.97,127.95,13.59609953]
[1725808270048,3.126,127.97,127.96,8.41]
[1725808279467,27.43475472,128.0,127.94,8.41]
[1725808279853,27.43475472,128.0,127.95,3.95029337]
[1725808280472,23.47,128.0,127.95,3.95029337]
[1725808280879,3.1261,127.96,127.95,3.95029337]
[1725808281272,3.1263,127.95,127.94,8.41]
[1725808281776,3.1263,127.95,127.94,12.32855018]
[1725808286678,23.47,128.0,127.97,8.41]
[1725808287175,45.35996239,128.0,127.97,8.41]
[1725808287375,23.47,128.0,127.97,8.41]
[1725808287979,23.47,128.01,127.97,8.41]
[1725808288276,3.1256,127.98,127.97,8.41]
[1725808289787,31.88,128.01,127.96,8.41]
[1725808289972,53.76995901,128.01,127.96,8.41]
[1725808290179,3.1262,127.96,127.94,3.91855018]
[1725808290380,3.1262,127.96,127.95,8.41]
[1725808290576,3.1262,127.96,127.95,12.389918]
[1725808291181,3.1259,127.97,127.95,12.389918]
[1725808291380,3.1259,127.97,127.96,8.41]
[1725808292081,3.1259,127.97,127.96,12.29337117]
[1725808300500,23.47,128.01,127.96,12.29337117]
[1725808300796,21.88994757,128.02,128.0,8.41]
[1725808300992,45.35994757,128.04,128.01,8.41]
[1725808301399,3.1246,128.02,128.01,8.41]
[1725808302287,3.125,128.01,128.0,8.41]
[1725808314404,23.47,128.04,127.97,5.34025483]
[1725808314405,8.41,128.03,127.97,5.34025483]
[1725808314604,23.47,128.02,127.96,8.41]
[1725808315305,23.47,128.02,127.96,12.23002719]
[1725808316405,31.88,128.02,127.95,8.41]
[1725808316703,33.1862,128.02,127.95,8.41]
[1725808317100,34.5571,128.02,127.95,8.41]
[1725808318406,3.1261,127.97,127.95,8.41]
[1725808319105,23.47,128.0,127.95,8.41]
[1725808319906,3.1261,127.96,127.95,8.41]
[1725808329811,45.35823703,128.01,127.95,8.41]
[1725808330109,26.1471,128.02,127.98,8.41]
[1725808330902,3.1254,127.99,127.98,8.41]
[1725808331522,3.1258,127.97,127.96,8.41]
[1725808334512,23.47,128.0,127.93,6.65967574]
[1725808334513,3.1265,127.95,127.93,6.65967574]
[1725808334714,3.1265,127.95,127.94,8.41]
[1725808353626,3.1262,127.96,127.94,8.41]
[1725808353824,3.1262,127.96,127.95,8.41]
[1725808361531,3.1264,127.95,127.94,8.41]
[1725808361728,8.41,127.97,127.84,1.3475]
[1725808361923,31.88,127.96,127.9,8.41]
[1725808362227,23.47,127.93,127.88,8.41]
[1725808362928,3.1277,127.9,127.88,8.41]
[1725808364029,3.1277,127.9,127.89,8.41]
[1725808367120,2.6292,127.96,127.89,8.41]
[1725808367327,34.5092,127.96,127.91,8.41]
[1725808367524,38.38813954,127.96,127.91,8.41]
[1725808367728,38.38813954,127.96,127.92,8.41]
[1725808367729,2.6292,127.96,127.92,8.41]
[1725808367930,2.6292,127.96,127.93,8.41]
[1725808368829,3.1266,127.94,127.93,8.41]
[1725808370629,3.87190114,127.97,127.93,8.41]
[1725808370826,23.47,127.98,127.93,8.41]
[1725808371027,3.89544885,127.97,127.93,8.41]
[1725808371334,3.1266,127.94,127.93,8.41]
[1725808374534,3.127,127.93,127.9,5.12346053]
[1725808374729,3.127,127.93,127.92,8.41]
[1725808375131,3.127,127.93,127.91,8.41]
[1725808375938,3.127,127.93,127.9,5.12346053]
[1725808375939,35.77544885,127.97,127.9,5.12346053]
[1725808376131,35.77544885,127.97,127.91,8.41]
[1725808376333,31.88,127.96,127.91,8.41]
[1725808376534,34.6064,127.96,127.91,8.41]
[1725808377127,34.6064,127.96,127.87,4.2457384]
[1725808377333,34.6064,127.96,127.9,8.41]
[1725808377743,3.1273,127.91,127.9,8.41]
[1725808397553,3.1278,127.89,127.88,8.41]
[1725808399669,3.1278,127.89,127.88,12.36558438]
[1725808401162,3.1278,127.89,127.88,3.95558438]
[1725808401466,3.1278,127.89,127.88,8.41]
[1725808401966,23.47,127.92,127.87,12.37019083]
[1725808402561,3.128,127.88,127.87,12.37019083]
[1725808403362,3.128,127.88,127.87,3.96019083]
[1725808403562,3.128,127.88,127.87,12.37019083]
[1725808409971,3.128,127.88,127.73,20.74467989]
[1725808409972,169.0,127.87,127.69,3.62034497]
[1725808410168,169.0,127.87,127.61,4.25275036]
[1725808410169,23.47,127.69,127.61,4.25275036]
[1725808410368,23.47,127.65,127.5,2.6474]
[1725808410570,31.88,127.65,127.42,8.17541112]
[1725808410878,31.88,127.62,127.43,1.44008678]
[1725808411073,3.1363,127.55,127.38,7.82]
[1725808411263,31.88,127.6,127.39,1.44050243]
[1725808411474,31.88,127.6,127.43,3.1389]
[1725808411772,111.57089821,127.68,127.28,23.47]
[1725808411773,23.47,127.57,127.28,23.47]
[1725808412075,23.47,127.55,127.47,21.1]
[1725808412267,3.1365,127.54,127.31,228.0]
[1725808412470,3.1365,127.54,127.28,4.00743058]
[1725808412471,3.1365,127.54,127.46,21.1]
[1725808413178,18.67597715,127.53,127.29,1.0]
[1725808413471,13.62310473,127.54,127.49,21.1]
[1725808413472,22.59821809,127.52,127.49,21.1]
[1725808413674,18.67597715,127.51,127.49,21.1]
[1725808413865,7.43080447,127.5,127.49,21.1]
[1725808414069,7.43080447,127.55,127.49,21.1]
[1725808414270,7.43080447,127.54,127.49,25.05888906]
[1725808414474,30.80086379,127.58,127.49,25.05888906]
[1725808414475,21.1,127.58,127.49,25.05888906]
[1725808414672,22.6018052,127.57,127.49,25.05888906]
[1725808414875,18.68021104,127.56,127.51,21.1]
[1725808415069,9.70086379,127.59,127.55,21.1]
[1725808415272,34.53926379,127.67,127.55,21.1]
[1725808415475,21.1,127.65,127.56,3.85807312]
[1725808415781,11.25206118,127.64,127.56,3.85807312]
[1725808415976,21.1,127.65,127.57,21.1]
[1725808416165,27.6984,127.67,127.57,26.33]
[1725808416365,51.1684,127.67,127.57,26.33]
[1725808416967,3.1339,127.64,127.57,26.33]
[1725808417378,27.6984,127.67,127.57,26.33]
[1725808418379,3.1338,127.65,127.57,26.33]
[1725808418579,27.6984,127.67,127.57,26.33]
[1725808418775,26.33,127.67,127.57,26.33]
[1725808418982,3.1339,127.64,127.57,26.33]
[1725808420980,3.1342,127.63,127.57,26.33]
[1725808421485,3.1342,127.63,127.54,1.4018]
[1725808421486,49.8,127.67,127.55,26.33]
[1725808421784,3.1346,127.62,127.55,26.33]
[1725808421972,49.8,127.65,127.55,26.33]
[1725808423380,3.1349,127.6,127.55,26.33]
[1725808423777,49.8,127.65,127.55,26.33]
[1725808423971,23.47,127.65,127.56,26.33]
[1725808424176,23.47,127.65,127.54,1.4018]
[1725808424177,49.8,127.67,127.58,26.33]
[1725808424578,3.1342,127.64,127.58,26.33]
[1725808424884,49.8,127.67,127.58,26.33]
[1725808425280,3.1342,127.63,127.58,26.33]
[1725808425978,49.8,127.67,127.58,26.33]
[1725808426178,49.8,127.67,127.56,26.33]
[1725808426377,107.59983838,127.68,127.54,27.7318]
[1725808426378,3.1349,127.61,127.54,27.7318]
[1725808426587,49.8,127.65,127.54,30.8681]
[1725808427282,3.1349,127.61,127.54,30.8681]
[1725808427683,3.1349,127.6,127.54,30.8681]
[1725808428081,26.33,127.63,127.54,27.7318]
[1725808428290,23.47,127.62,127.54,27.7318]
[1725808430086,3.1354,127.59,127.54,27.7318]
[1725808431594,3.1354,127.58,127.54,27.7318]
[1725808432090,3.1354,127.58,127.54,1.4018]
[1725808433093,3.1361,127.56,127.54,1.4018]
[1725808433490,49.8,127.59,127.5,26.33]
[1725808433685,49.8,127.59,127.5,30.30247922]
[1725808434593,3.1363,127.55,127.5,30.30247922]
[1725808434984,3.1363,127.55,127.49,1.4025]
[1725808434985,49.8,127.57,127.49,1.4025]
[1725808435190,26.33,127.55,127.49,1.4025]
[1725808435492,26.33,127.59,127.33,228.0]
[1725808435493,26.33,127.53,127.33,228.0]
[1725808435700,26.33,127.53,127.23,16.19584497]
[1725808435701,2.6938,127.54,127.43,26.33]
[1725808435888,2.6938,127.54,127.45,26.33]
[1725808435889,2.2984,127.54,127.45,26.33]
[1725808436189,3.1372,127.51,127.45,30.22320464]
[1725808436396,1.2984,127.54,127.45,31.61130464]
[1725808437090,1.2984,127.54,127.45,8.41980464]
[1725808437399,1.2984,127.54,127.47,26.33]
[1725808437589,3.1372,127.51,127.47,26.33]
[1725808437792,51.0984,127.54,127.45,5.28130464]
[1725808438999,3.1376,127.5,127.45,5.28130464]
[1725808440095,3.1377,127.49,127.45,5.28130464]
[1725808440998,3.1374,127.5,127.46,26.33]
[1725808441691,3.1377,127.49,127.46,26.33]
[1725808441892,1.2984,127.54,127.46,26.33]
[1725808443008,3.1375,127.5,127.46,26.33]
[1725808444297,1.2984,127.54,127.47,21.11]
[1725808445005,1.2984,127.54,127.47,24.2481]
[1725808445895,1.2984,127.54,127.46,21.11]
[1725808446091,21.11,127.53,127.46,21.11]
[1725808446497,3.1376,127.5,127.46,21.11]
[1725808447191,3.1376,127.5,127.47,21.11]
[1725808448597,3.1376,127.5,127.45,8.41980464]
[1725808448598,1.2984,127.54,127.49,21.11]
[1725808449200,3.1371,127.52,127.49,21.11]
[1725808449500,1.2984,127.54,127.49,21.11]
[1725808451197,21.11,127.56,127.49,21.11]
[1725808451198,44.58,127.56,127.49,21.11]
[1725808451510,23.47,127.56,127.49,21.11]
[1725808451707,3.1368,127.53,127.49,21.11]
[1725808452305,44.58,127.58,127.5,21.11]
[1725808452809,44.58,127.58,127.47,21.11]
[1725808452810,23.47,127.58,127.52,21.11]
[1725808453400,24.8048,127.59,127.52,21.11]
[1725808453600,24.8048,127.59,127.53,3.94257922]
[1725808453997,24.8048,127.59,127.5,21.11]
[1725808454507,1.3348,127.59,127.5,21.11]
[1725808454707,24.8048,127.59,127.5,21.11]
[1725808454904,21.11,127.56,127.45,5.28130464]
[1725808455106,44.58,127.57,127.48,21.11]
[1725808457211,44.58,127.57,127.5,21.11]
[1725808457406,23.47,127.57,127.5,21.11]
[1725808457612,23.47,127.58,127.51,21.11]
[1725808457809,24.8048,127.59,127.51,21.11]
[1725808459811,3.1364,127.54,127.51,21.11]
[1725808460211,23.47,127.58,127.45,5.28130464]
[1725808460413,23.47,127.58,127.49,21.11]
[1725808460911,23.47,127.53,127.45,5.28130464]
[1725808461118,23.47,127.53,127.46,21.11]
[1725808461615,24.8443,127.53,127.46,21.11]
[1725808462410,3.1378,127.49,127.46,21.11]
[1725808462614,23.47,127.51,127.45,5.28130464]
[1725808462810,22.4575,127.52,127.45,5.28130464]
[1725808463118,3.138,127.48,127.45,5.28130464]
[1725808463413,21.11,127.51,127.41,21.11]
[1725808463615,21.11,127.51,127.41,26.40954886]
[1725808463822,44.58,127.49,127.41,3.89934886]
[1725808464007,21.11,127.49,127.4,21.11]
[1725808464208,21.11,127.47,127.29,238.86103492]
[1725808464415,21.11,127.47,127.38,21.11]
[1725808464712,21.11,127.47,127.38,25.05367302]
[1725808464908,3.139,127.44,127.38,25.05367302]
[1725808465218,3.139,127.44,127.43,21.11]
[1725808465515,3.139,127.44,127.42,3.9857977]
[1725808465717,3.139,127.44,127.41,21.11]
[1725808466220,3.1392,127.43,127.4,26.36]
[1725808466516,26.36,127.5,127.41,26.36]
[1725808466720,3.1385,127.46,127.43,26.36]
[1725808467018,214.08705857,127.52,127.43,26.36]
[1725808467221,3.1388,127.45,127.42,1.2855]
[1725808467418,26.36,127.51,127.42,1.2855]
[1725808467619,187.72705857,127.52,127.42,1.2855]
[1725808467821,3.1383,127.47,127.42,1.2855]
[1725808468008,214.08705857,127.52,127.42,1.2855]
[1725808468518,3.1383,127.47,127.42,1.2855]
[1725808468824,3.1389,127.44,127.42,1.2855]
[1725808469123,26.36,127.5,127.42,1.2855]
[1725808469915,187.72705857,127.52,127.42,1.2855]
[1725808470115,214.08705857,127.52,127.42,1.2855]
[1725808470714,3.1384,127.46,127.42,1.2855]
[1725808471314,214.08705857,127.52,127.42,1.2855]
[1725808472423,3.1385,127.46,127.42,1.2855]
[1725808472619,3.1385,127.46,127.42,27.6455]
[1725808473622,214.08705857,127.52,127.42,27.6455]
[1725808473623,3.1386,127.45,127.42,27.6455]
[1725808473821,26.36,127.48,127.42,1.2855]
[1725808474023,3.1392,127.43,127.39,5.2884102]
[1725808474222,1.3416,127.47,127.39,31.6484102]
[1725808474723,3.139,127.44,127.39,31.6484102]
[1725808475414,3.139,127.44,127.39,34.7885102]
[1725808475608,1.3416,127.47,127.39,5.2884102]
[1725808475810,26.36,127.46,127.39,5.2884102]
[1725808476018,1.3416,127.47,127.39,5.2884102]
[1725808476222,3.1397,127.41,127.39,5.2884102]
[1725808477730,27.7016,127.47,127.39,5.2884102]
[1725808478025,23.47,127.46,127.39,5.2884102]
[1725808478725,24.867,127.46,127.37,27.6459]
[1725808479024,1.3607,127.45,127.37,27.6459]
[1725808479220,23.47,127.44,127.34,3.1412]
[1725808479419,23.47,127.44,127.36,27.6587]
[1725808480118,23.47,127.44,127.36,1.2987]
[1725808480719,3.1403,127.39,127.36,1.2987]
[1725808481618,23.47,127.44,127.34,3.94371172]
[1725808481825,23.47,127.44,127.33,26.36]
[1725808482022,23.47,127.44,127.33,30.23523555]
[1725808482222,3.1403,127.38,127.33,33.37673555]
[1725808482421,33.78203711,127.45,127.33,3.87523555]
[1725808482422,23.47,127.41,127.33,3.87523555]
[1725808482729,3.1407,127.37,127.33,26.36]
[1725808482924,49.83,127.42,127.33,3.88897613]
[1725808483131,1.4041,127.41,127.31,26.36]
[1725808483320,26.36,127.4,127.29,3.9524]
[1725808483517,49.83,127.4,127.31,26.36]
[1725808483724,3.1408,127.36,127.31,26.36]
[1725808483916,26.36,127.4,127.31,26.36]
[1725808484122,1.4041,127.41,127.34,26.36]
[1725808484416,3.1405,127.38,127.34,30.32685777]
[1725808485428,1.4041,127.41,127.34,30.32685777]
[1725808485925,3.1398,127.4,127.36,26.36]
[1725808486128,30.89203711,127.45,127.38,21.1]
[1725808486327,1.327,127.44,127.38,21.1]
[1725808486622,3.1398,127.41,127.38,21.1]
[1725808487022,1.327,127.44,127.38,21.1]
[1725808487423,21.1,127.49,127.41,21.1]
[1725808487624,21.1,127.49,127.42,3.96530463]
[1725808488123,3.1386,127.46,127.41,21.1]
[1725808488520,25.1052,127.51,127.43,21.1]
[1725808489126,25.1052,127.51,127.41,3.88404357]
[1725808489324,21.1,127.44,127.36,1.4114]
[1725808489523,1.2852,127.43,127.36,1.4114]
[1725808491335,3.1398,127.4,127.36,1.4114]
[1725808491725,21.1,127.42,127.34,26.34885777]
[1725808491928,3.1403,127.39,127.34,26.34885777]
[1725808492129,3.1403,127.39,127.34,5.24885777]
[1725808492529,3.1403,127.38,127.34,5.24885777]
[1725808492727,27.6752,127.43,127.34,5.24885777]
[1725808493136,3.1402,127.39,127.34,5.24885777]
[1725808493436,27.6752,127.43,127.34,5.24885777]
[1725808493838,3.1403,127.38,127.34,5.24885777]
[1725808494132,27.6752,127.43,127.34,5.24885777]
[1725808495231,3.1406,127.37,127.34,5.24885777]
[1725808497630,1.2852,127.43,127.35,26.39]
[1725808498137,3.1405,127.38,127.35,26.39]
[1725808499032,3.1402,127.39,127.35,26.39]
[1725808499231,1.2852,127.43,127.34,3.96685777]
[1725808499435,1.2852,127.43,127.35,27.7516]
[1725808500335,27.6752,127.43,127.35,1.3616]
[1725808500933,27.6752,127.43,127.35,27.7516]
[1725808502938,3.1402,127.39,127.35,27.7516]
[1725808503542,27.6752,127.43,127.35,27.7516]
[1725808503543,1.2852,127.43,127.37,26.39]
[1725808503933,1.3759,127.44,127.37,26.39]
[1725808504242,3.1394,127.42,127.37,29.5304]
[1725808504435,27.7187,127.47,127.37,26.39]
[1725808504736,3.139,127.44,127.39,26.39]
[1725808505435,3.139,127.44,127.39,29.53]
[1725808505841,1.3287,127.47,127.41,26.39]
[1725808506041,1.3287,127.47,127.41,30.27857977]
[1725808506640,3.1384,127.46,127.41,30.27857977]
[1725808506943,9.19970187,127.46,127.41,33.41807977]
[1725808507239,3.1386,127.45,127.41,33.41807977]
[1725808507447,3.1386,127.45,127.41,30.27857977]
[1725808507938,9.19980187,127.46,127.41,33.41807977]
[1725808508243,6.06130187,127.46,127.41,33.41807977]
[1725808508444,3.1388,127.45,127.41,30.27857977]
[1725808509043,3.1388,127.45,127.41,33.41807977]
[1725808509643,9.19970187,127.46,127.42,3.1392]
[1725808509845,9.19970187,127.46,127.42,4.4755]
[1725808510343,6.06130187,127.46,127.43,29.5291]
[1725808511437,6.06130187,127.46,127.42,7.1218]
[1725808511643,6.06130187,127.46,127.42,3.9826]
[1725808512448,3.1386,127.45,127.42,3.9826]
[1725808512648,6.06130187,127.46,127.42,2.6374]
[1725808513243,3.1386,127.45,127.42,2.6374]
[1725808514336,3.1386,127.45,127.42,5.7767]
[1725808514535,6.06130187,127.46,127.42,5.7767]
[1725808514536,9.19970187,127.46,127.42,5.7767]
[1725808514944,6.06130187,127.46,127.44,26.39]
[1725808515647,6.06130187,127.46,127.44,29.5287]
[1725808516452,161.62365857,127.52,127.44,26.39]
[1725808516751,161.62365857,127.52,127.47,26.39]
[1725808517251,3.1376,127.49,127.47,26.39]
[1725808517453,3.1376,127.49,127.48,4.01498509]
[1725808519151,6.06318582,127.51,127.48,4.01498509]
[1725808519355,161.62365857,127.52,127.47,26.39]
[1725808519843,3.1374,127.51,127.47,29.528]
[1725808520049,161.62365857,127.52,127.47,29.528]
[1725808520354,161.62365857,127.52,127.47,26.39]
[1725808522057,3.1373,127.51,127.47,29.5279]
[1725808522758,3.1373,127.51,127.48,3.1379]
[1725808522956,3.1373,127.51,127.48,3.88130124]
[1725808523154,161.62365857,127.52,127.47,26.39]
[1725808523349,161.62365857,127.52,127.42,3.9627]
[1725808523350,161.62365857,127.52,127.45,29.5285]
[1725808523553,161.62365857,127.52,127.45,26.39]
[1725808523753,3.1378,127.49,127.45,26.39]
[1725808523956,161.62365857,127.52,127.45,26.39]